[Event "Polish Youth G16 Championship 2023"]
[Site "Jastrzebia Gora"]
[Date "2023.03.17"]
[Round "7.5"]
[White "Seemann, Pola"]
[Black "Szopa, Emilia"]
[Result "1-0"]
[ECO "B32"]
[WhiteElo "1714"]
[BlackElo "1709"]
[Annotator "NA RC COMBH"]
[PlyCount "69"]
[EventDate "2023.03.11"]
[EventType "swiss"]
[EventCountry "POL"]
[SourceTitle "playchess.com"]
[Source "ChessBase"]
[SourceQuality "1"]
[TimeControl "40/5400+30:1800+30"]

1. e4 {[%emt 0:00:03]} c5 {[%emt 0:00:33]} 2. Nf3 {[%emt 0:00:06]} Nc6 {[%emt 0:01:00]} 3. d4 {[%emt 0:00:07]} cxd4 {[%emt 0:00:11]} 4. Nxd4 {[%emt 0:00:07]} e5 {[%emt 0:00:58]} 5. Nb5 {[%emt 0:00:06]} d6 {[%emt 0:00:28]} 6. c4 {[%emt 0:00:09]} Be6 {[%emt 0:04:56]} 7. N5c3 {[%emt 0:00:49]} Rc8 {[%emt 0:02:17]} 8. Nd5 {[%emt 0:04:23]} Bxd5 {[%emt 0:01:16]} 9. exd5 {[%emt 0:01:17]} Nce7 {[%emt 0:02:09]} 10. Qa4+ {[%emt 0:04:04]} Qd7 {[%emt 0:00:23]} 11. Qxd7+ {[%emt 0:03:11]} Kxd7 {[%emt 0:00:42]} 12. Nc3 {[%emt 0:02:21]} f5 {[%emt 0:02:20]} 13. f3 {[%emt 0:05:49]} Nf6 {[%emt 0:05:22]} 14. Be3 {[%emt 0:04:56]} b6 {[%emt 0:01:39]} 15. a4 {[%emt 0:03:11]} f4 {[%emt 0:02:40]} 16. Bf2 {[%emt 0:02:38]} Rb8 {[%emt 0:01:15]} 17. Bd3 {[%emt 0:02:24]} g6 {[%emt 0:00:40]} 18. Kd2 {[%emt 0:04:19]} Nf5 {[%emt 0:04:59]} 19. Rhb1 {[%emt 0:04:14]} Kc7 {[%emt 0:02:42]} 20. a5 {[%emt 0:02:43]} Kd8 {[%emt 0:06:53]} 21. Nb5 {[%emt 0:04:09]} a6 {[%emt 0:01:57]} 22. Bxb6+ {[%emt 0:03:22]} Kd7 {[%emt 0:01:15]} 23. Nc7 {[%emt 0:00:59]} Nd4 {[%emt 0:00:49]} 24. b4 {[%emt 0:03:24]} Bh6 {[%emt 0:02:09]} 25. Nxa6 {[%emt 0:00:42]} Rb7 {[%emt 0:00:39]} 26. Bxd4 {[%emt 0:00:36]} exd4 {[%emt 0:00:08]} 27. b5 {[%emt 0:00:44]} g5 {[%emt 0:01:00]} 28. h3 {[%emt 0:00:41]} g4 {[%emt 0:00:34]} 29. hxg4 {[%emt 0:00:16]} Kd8 {[%emt 0:01:30]} 30. Nb4 {[%emt 0:00:13]} Nxg4 {[%emt 0:00:11]} 31. a6 {[%emt 0:00:29]} Rg7 {[%emt 0:01:04]} 32. a7 {[%emt 0:00:28]} Ne3 {[%emt 0:00:35]} 33. a8=Q+ {[%emt 0:00:13]} Ke7 {[%emt 0:00:08]} 34. Ra7+ {[%emt 0:00:22]} Kf6 {[%emt 0:00:12]} 35. Qxh8 {[%emt 0:00:08]} 1-0

[Event "Polish Youth G16 Championship 2023"]
[Site "Jastrzebia Gora"]
[Date "2023.03.17"]
[Round "7.6"]
[White "Lazniewska, Zofia"]
[Black "Salamon, Julia"]
[Result "0-1"]
[ECO "B40"]
[WhiteElo "1621"]
[BlackElo "1701"]
[Annotator "NA RC COMBH"]
[PlyCount "170"]
[EventDate "2023.03.11"]
[EventType "swiss"]
[EventCountry "POL"]
[SourceTitle "playchess.com"]
[Source "ChessBase"]
[SourceQuality "1"]
[TimeControl "40/5400+30:1800+30"]

1. e4 {[%emt 0:00:01]} c5 {[%emt 0:00:05]} 2. Nf3 {[%emt 0:00:10]} e6 {[%emt 0:00:07]} 3. c3 {[%emt 0:00:10]} Nf6 {[%emt 0:00:11]} 4. e5 {[%emt 0:00:07]} Nd5 {[%emt 0:00:04]} 5. d4 {[%emt 0:00:13]} cxd4 {[%emt 0:00:05]} 6. cxd4 {[%emt 0:00:09]} d6 {[%emt 0:01:26]} 7. a3 {[%emt 0:01:35]} Nc6 {[%emt 0:03:06]} 8. Bd3 {[%emt 0:00:48]} dxe5 {[%emt 0:01:42]} 9. dxe5 {[%emt 0:00:32]} Qc7 {[%emt 0:00:29]} 10. O-O {[%emt 0:00:45]} Nxe5 {[%emt 0:08:11]} 11. Nxe5 {[%emt 0:00:23]} Qxe5 {[%emt 0:00:02]} 12. Bb5+ {[%emt 0:00:42]} Bd7 {[%emt 0:00:03]} 13. Bxd7+ {[%emt 0:00:13]} Kxd7 {[%emt 0:00:03]} 14. Re1 {[%emt 0:05:56]} Qf5 {[%emt 0:16:29]} 15. Nc3 {[%emt 0:17:23]} Bd6 {[%emt 0:03:23]} 16. Qb3 {[%emt 0:05:27]} b6 {[%emt 0:05:25]} 17. Qb5+ {[%emt 0:13:02]} Kc7 {[%emt 0:00:44]} 18. Ne4 {[%emt 0:01:38]} Rhd8 {[%emt 0:16:20]} 19. Bg5 {[%emt 0:05:02]} f6 {[%emt 0:03:37]} 20. Rac1+ {[%emt 0:05:03]} Kb8 {[%emt 0:00:13]} 21. Bh4 {[%emt 0:09:12]} a6 {[%emt 0:17:21]} 22. Qc6 {[%emt 0:02:53]} Be5 {[%emt 0:00:29]} 23. Bg3 {[%emt 0:01:38]} Ka7 {[%emt 0:04:56]} 24. Bxe5 {[%emt 0:02:50]} Qxe5 {[%emt 0:00:05]} 25. Nc5 {[%emt 0:03:42]} Qc7 {[%emt 0:00:04]} 26. Nxe6 {[%emt 0:01:14]} Qxc6 {[%emt 0:00:03]} 27. Rxc6 {[%emt 0:00:03]} Rd7 {[%emt 0:00:13]} 28. Rd1 {[%emt 0:04:02]} Kb7 {[%emt 0:00:06]} 29. Rc2 {[%emt 0:01:01]} Re8 {[%emt 0:01:24]} 30. Nf4 {[%emt 0:02:40]} Rde7 {[%emt 0:01:15]} 31. Nd3 {[%emt 0:02:02]} Nf4 {[%emt 0:07:08]} 32. g3 {[%emt 0:00:37]} Nxd3 {[%emt 0:01:36]} 33. Rxd3 {[%emt 0:00:07]} Re1+ {[%emt 0:00:06]} 34. Kg2 {[%emt 0:00:08]} R8e7 {[%emt 0:00:03]} 35. Rdc3 {[%emt 0:00:33]} R1e6 {[%emt 0:01:32]} 36. Kf3 {[%emt 0:00:23]} b5 {[%emt 0:00:37]} 37. h3 {[%emt 0:01:22]} g6 {[%emt 0:02:02]} 38. h4 {[%emt 0:01:31]} f5 {[%emt 0:01:25]} 39. Kf4 {[%emt 0:04:58]} h6 {[%emt 0:01:47]} 40. Kf3 {[%emt 0:00:00]} Kb6 {[%emt 0:00:00]} 41. Rc8 {[%emt 0:02:02]} Rd7 {[%emt 0:12:09]} 42. Rh8 {[%emt 0:02:07]} g5 {[%emt 0:01:08]} 43. hxg5 {[%emt 0:00:37]} hxg5 {[%emt 0:00:04]} 44. Rg8 {[%emt 0:00:58]} Rd3+ {[%emt 0:00:22]} 45. Kg2 {[%emt 0:00:13]} g4 {[%emt 0:00:06]} 46. Rf8 {[%emt 0:01:36]} Rd5 {[%emt 0:01:48]} 47. Rfc8 {[%emt 0:05:27]} Red6 {[%emt 0:03:03]} 48. Re8 {[%emt 0:03:01]} Ka5 {[%emt 0:03:07]} 49. Ree2 {[%emt 0:01:17]} Ka4 {[%emt 0:00:59]} 50. f3 {[%emt 0:01:54]} gxf3+ {[%emt 0:00:55]} 51. Kxf3 {[%emt 0:00:06]} Rd3+ {[%emt 0:00:03]} 52. Kf4 {[%emt 0:00:31]} R6d4+ {[%emt 0:00:32]} 53. Kxf5 {[%emt 0:00:11]} Rxg3 {[%emt 0:00:05]} 54. Ke5 {[%emt 0:01:05]} Rdd3 {[%emt 0:00:50]} 55. Ke4 {[%emt 0:00:34]} a5 {[%emt 0:01:21]} 56. Rc5 {[%emt 0:01:24]} b4 {[%emt 0:02:13]} 57. axb4 {[%emt 0:00:40]} axb4 {[%emt 0:00:17]} 58. Rcc2 {[%emt 0:01:05]} Kb3 {[%emt 0:00:30]} 59. Rh2 {[%emt 0:01:17]} Rge3+ {[%emt 0:01:10]} 60. Kf4 {[%emt 0:00:09]} Rh3 {[%emt 0:01:33]} 61. Rhg2 {[%emt 0:01:59]} Rhf3+ {[%emt 0:02:04]} 62. Ke4 {[%emt 0:01:26]} Rg3 {[%emt 0:02:25]} 63. Rh2 {[%emt 0:00:21]} Rge3+ {[%emt 0:00:06]} 64. Kf4 {[%emt 0:00:06]} Rh3 {[%emt 0:00:03]} 65. Rhg2 {[%emt 0:00:28]} Rh4+ {[%emt 0:01:13]} 66. Ke5 {[%emt 0:00:31]} Rhd4 {[%emt 0:01:33]} 67. Rh2 {[%emt 0:01:43]} Ka2 {[%emt 0:01:07]} 68. Rcf2 {[%emt 0:02:30]} Rd8 {[%emt 0:00:39]} 69. Rc2 {[%emt 0:00:23]} b3 {[%emt 0:00:19]} 70. Rcg2 {[%emt 0:00:21]} Re8+ {[%emt 0:00:44]} 71. Kf4 {[%emt 0:01:21]} Rd1 {[%emt 0:00:36]} 72. Rf2 {[%emt 0:00:41]} Rf8+ {[%emt 0:00:11]} 73. Ke3 {[%emt 0:00:12]} Re8+ {[%emt 0:00:06]} 74. Kf3 {[%emt 0:00:08]} Rf8+ {[%emt 0:00:04]} 75. Ke3 {[%emt 0:00:03]} Rxf2 {[%emt 0:00:06]} 76. Rxf2 {[%emt 0:00:07]} Rb1 {[%emt 0:00:30]} 77. Kd3 {[%emt 0:00:24]} Rxb2 {[%emt 0:00:04]} 78. Rf8 {[%emt 0:00:29]} Rc2 {[%emt 0:00:04]} 79. Ra8+ {[%emt 0:00:08]} Kb1 {[%emt 0:00:57]} 80. Rb8 {[%emt 0:00:31]} b2 {[%emt 0:00:10]} 81. Rh8 {[%emt 0:00:14]} Rc7 {[%emt 0:00:32]} 82. Rg8 {[%emt 0:00:20]} Ra7 {[%emt 0:01:01]} 83. Kc3 {[%emt 0:00:21]} Ka2 {[%emt 0:00:06]} 84. Rg2 {[%emt 0:00:05]} Rc7+ {[%emt 0:00:03]} 85. Kb4 {[%emt 0:00:34]} Ka1 {[%emt 0:00:12]} 0-1

[Event "Polish Youth G16 Championship 2023"]
[Site "Jastrzebia Gora"]
[Date "2023.03.17"]
[Round "7.7"]
[White "Kawa, Anna"]
[Black "Pietryk, Joanna"]
[Result "1-0"]
[ECO "B13"]
[WhiteElo "1743"]
[BlackElo "1488"]
[Annotator "NA RC COMBH"]
[PlyCount "123"]
[EventDate "2023.03.11"]
[EventType "swiss"]
[EventCountry "POL"]
[SourceTitle "playchess.com"]
[Source "ChessBase"]
[SourceQuality "1"]
[TimeControl "40/5400+30:1800+30"]

1. e4 {[%emt 0:00:04]} c6 {[%emt 0:00:06]} 2. d4 {[%emt 0:00:10]} d5 {[%emt 0:00:05]} 3. exd5 {[%emt 0:00:11]} cxd5 {[%emt 0:00:08]} 4. c4 {[%emt 0:00:12]} Nf6 {[%emt 0:00:12]} 5. Nc3 {[%emt 0:00:14]} Nc6 {[%emt 0:00:10]} 6. Nf3 {[%emt 0:00:14]} g6 {[%emt 0:00:11]} 7. Bg5 {[%emt 0:02:46]} Be6 {[%emt 0:00:18]} 8. Be2 {[%emt 0:16:17]} Bg7 {[%emt 0:01:46]} 9. O-O {[%emt 0:05:28]} O-O {[%emt 0:06:16]} 10. Rc1 {[%emt 0:13:57]} h6 {[%emt 0:14:43]} 11. Bxf6 {[%emt 0:03:36]} Bxf6 {[%emt 0:00:23]} 12. c5 {[%emt 0:05:14]} Qd7 {[%emt 0:14:00]} 13. Qd2 {[%emt 0:06:50]} Kg7 {[%emt 0:00:43]} 14. Bb5 {[%emt 0:04:28]} a6 {[%emt 0:01:03]} 15. Bxc6 {[%emt 0:03:08]} bxc6 {[%emt 0:00:39]} 16. Na4 {[%emt 0:02:54]} Qc7 {[%emt 0:01:27]} 17. Rfe1 {[%emt 0:02:06]} Bf5 {[%emt 0:03:37]} 18. Nb6 {[%emt 0:01:21]} Ra7 {[%emt 0:01:13]} 19. Rc3 {[%emt 0:01:58]} Bg4 {[%emt 0:05:27]} 20. h3 {[%emt 0:02:05]} Bxf3 21. Rxf3 Bg5 {[%emt 0:02:08]} 22. Qe2 {[%emt 0:01:43]} e6 {[%emt 0:02:21]} 23. Ra3 {[%emt 0:05:14]} Qf4 {[%emt 0:05:19]} 24. Rd1 {[%emt 0:03:38]} Bf6 {[%emt 0:00:44]} 25. g3 {[%emt 0:02:54]} Qf5 {[%emt 0:01:19]} 26. Rf3 {[%emt 0:03:29]} Qh5 {[%emt 0:03:33]} 27. Kg2 {[%emt 0:02:45]} e5 {[%emt 0:01:42]} 28. dxe5 {[%emt 0:01:42]} Qxe5 {[%emt 0:00:23]} 29. Qxe5 {[%emt 0:00:49]} Bxe5 {[%emt 0:00:06]} 30. Rb3 {[%emt 0:01:22]} Re8 {[%emt 0:03:21]} 31. Re1 {[%emt 0:02:00]} Rae7 {[%emt 0:01:12]} 32. Rbe3 {[%emt 0:02:58]} Bf6 {[%emt 0:03:50]} 33. Rxe7 {[%emt 0:00:39]} Rxe7 {[%emt 0:00:10]} 34. Rxe7 Bxe7 {[%emt 0:00:07]} 35. Nd7 {[%emt 0:00:16]} a5 {[%emt 0:08:08]} 36. Kf3 {[%emt 0:02:55]} Bf6 {[%emt 0:02:30]} 37. b3 {[%emt 0:02:47]} Bd4 {[%emt 0:00:33]} 38. Nb8 {[%emt 0:00:31]} Bxc5 {[%emt 0:00:11]} 39. Nxc6 {[%emt 0:00:02]} Bb6 {[%emt 0:00:32]} 40. b4 {[%emt 0:00:00]} axb4 {[%emt 0:00:00]} 41. Nxb4 {[%emt 0:01:00]} d4 {[%emt 0:02:23]} 42. Ke4 {[%emt 0:00:13]} Bc5 {[%emt 0:02:22]} 43. Nd3 {[%emt 0:01:16]} Bb6 {[%emt 0:04:58]} 44. f3 {[%emt 0:01:47]} f5+ {[%emt 0:03:07]} 45. Kd5 {[%emt 0:00:38]} Bc7 {[%emt 0:03:46]} 46. f4 {[%emt 0:03:40]} Bb6 {[%emt 0:01:14]} 47. Kc6 {[%emt 0:01:01]} Ba5 {[%emt 0:03:10]} 48. Kb5 {[%emt 0:00:25]} Bc3 {[%emt 0:01:21]} 49. a4 {[%emt 0:02:49]} Kf6 {[%emt 0:01:04]} 50. a5 {[%emt 0:00:27]} Bxa5 {[%emt 0:00:14]} 51. Kxa5 {[%emt 0:00:02]} Ke6 {[%emt 0:01:23]} 52. Kb4 {[%emt 0:01:44]} Kd5 {[%emt 0:00:26]} 53. Nf2 {[%emt 0:03:11]} g5 {[%emt 0:02:10]} 54. h4 {[%emt 0:01:48]} gxf4 {[%emt 0:01:02]} 55. gxf4 {[%emt 0:00:03]} h5 {[%emt 0:01:36]} 56. Kb3 {[%emt 0:02:23]} Kc5 {[%emt 0:00:44]} 57. Kc2 {[%emt 0:00:53]} Kc4 {[%emt 0:02:29]} 58. Kd2 {[%emt 0:00:05]} d3 {[%emt 0:01:38]} 59. Nxd3 {[%emt 0:00:07]} Kd5 {[%emt 0:00:41]} 60. Ke3 {[%emt 0:00:06]} Kc4 {[%emt 0:00:23]} 61. Nf2 {[%emt 0:00:38]} Kc3 {[%emt 0:00:35]} 62. Nh1 {[%emt 0:00:11]} 1-0

[Event "Polish Youth G16 Championship 2023"]
[Site "Jastrzebia Gora"]
[Date "2023.03.17"]
[Round "7.8"]
[White "Zapalowska, Wiktoria"]
[Black "Romejko, Jagoda"]
[Result "1-0"]
[ECO "B01"]
[WhiteElo "1639"]
[BlackElo "1483"]
[Annotator "NA RC COMBH"]
[PlyCount "105"]
[EventDate "2023.03.11"]
[EventType "swiss"]
[EventCountry "POL"]
[SourceTitle "playchess.com"]
[Source "ChessBase"]
[SourceQuality "1"]
[TimeControl "40/5400+30:1800+30"]

1. e4 d5 2. exd5 {[%emt 0:00:21]} Qxd5 {[%emt 0:00:10]} 3. Nc3 {[%emt 0:00:18]} Qd8 {[%emt 0:00:08]} 4. d4 {[%emt 0:00:23]} Nf6 {[%emt 0:00:05]} 5. Nf3 {[%emt 0:00:35]} c6 {[%emt 0:00:06]} 6. Bd3 {[%emt 0:01:16]} Bg4 {[%emt 0:00:48]} 7. Be3 {[%emt 0:00:49]} e6 {[%emt 0:01:21]} 8. h3 {[%emt 0:00:38]} Bh5 {[%emt 0:02:19]} 9. g4 {[%emt 0:04:08]} Bg6 {[%emt 0:01:19]} 10. Ne5 {[%emt 0:01:48]} Bxd3 11. Qxd3 {[%emt 0:01:25]} Nbd7 {[%emt 0:09:17]} 12. Nxd7 {[%emt 0:02:28]} Qxd7 {[%emt 0:00:35]} 13. O-O-O {[%emt 0:00:49]} O-O-O {[%emt 0:15:19]} 14. a3 {[%emt 0:04:53]} Bd6 {[%emt 0:07:11]} 15. Ne2 {[%emt 0:05:06]} Nd5 {[%emt 0:03:33]} 16. Bd2 {[%emt 0:01:23]} Qc7 {[%emt 0:03:45]} 17. Qf3 {[%emt 0:04:42]} c5 {[%emt 0:15:37]} 18. Kb1 {[%emt 0:09:07]} c4 {[%emt 0:10:15]} 19. Nc3 {[%emt 0:04:04]} Nxc3+ {[%emt 0:05:43]} 20. Bxc3 {[%emt 0:01:12]} f6 {[%emt 0:04:13]} 21. Rhe1 {[%emt 0:03:16]} Rhe8 {[%emt 0:00:48]} 22. Re4 {[%emt 0:09:15]} Qb6 {[%emt 0:06:18]} 23. Ka2 {[%emt 0:06:19]} Qc7 {[%emt 0:08:02]} 24. Qe2 {[%emt 0:00:57]} b5 {[%emt 0:03:33]} 25. Rxe6 {[%emt 0:00:33]} Rxe6 {[%emt 0:00:39]} 26. Qxe6+ {[%emt 0:00:02]} Kb8 {[%emt 0:00:13]} 27. Qf5 {[%emt 0:01:25]} Qd7 {[%emt 0:01:59]} 28. Qxd7 {[%emt 0:04:55]} Rxd7 {[%emt 0:00:03]} 29. b3 {[%emt 0:03:29]} cxb3+ {[%emt 0:00:26]} 30. Kxb3 {[%emt 0:00:19]} Kb7 {[%emt 0:00:38]} 31. Re1 {[%emt 0:00:53]} Kc6 {[%emt 0:00:22]} 32. Ba5 {[%emt 0:04:41]} Kd5 {[%emt 0:00:52]} 33. c3 {[%emt 0:01:23]} Bf4 {[%emt 0:00:42]} 34. Bb4 {[%emt 0:01:46]} Bd2 {[%emt 0:00:32]} 35. Re2 {[%emt 0:00:54]} Bf4 {[%emt 0:00:31]} 36. Re8 {[%emt 0:01:46]} g6 {[%emt 0:00:30]} 37. f3 Bc7 {[%emt 0:00:30]} 38. Bc5 {[%emt 0:02:57]} a5 {[%emt 0:00:27]} 39. Ra8 {[%emt 0:01:56]} Kc6 {[%emt 0:00:31]} 40. Ra6+ {[%emt 0:00:00]} Kd5 {[%emt 0:00:00]} 41. Rxf6 {[%emt 0:00:24]} Be5 {[%emt 0:11:22]} 42. Rb6 Bc7 {[%emt 0:01:21]} 43. Rxb5 {[%emt 0:05:56]} Kc6 {[%emt 0:00:30]} 44. Kc4 {[%emt 0:00:32]} Rf7 {[%emt 0:00:24]} 45. d5+ {[%emt 0:05:07]} Kd7 {[%emt 0:00:15]} 46. d6 {[%emt 0:02:02]} Rf4+ {[%emt 0:00:33]} 47. Kd5 {[%emt 0:00:12]} Bd8 {[%emt 0:00:32]} 48. Rb7+ {[%emt 0:00:13]} Kc8 {[%emt 0:00:26]} 49. Kc6 {[%emt 0:00:20]} Rf6 {[%emt 0:00:23]} 50. Rxh7 {[%emt 0:01:00]} Rxf3 {[%emt 0:00:31]} 51. d7+ {[%emt 0:00:12]} Kb8 {[%emt 0:00:07]} 52. Rh8 {[%emt 0:00:12]} Rf6+ {[%emt 0:00:10]} 53. Bd6+ {[%emt 0:00:05]} 1-0

[Event "Polish Youth G16 Championship 2023"]
[Site "Jastrzebia Gora"]
[Date "2023.03.17"]
[Round "7.9"]
[White "Oborska, Magda"]
[Black "Kicinska, Magdalena"]
[Result "1-0"]
[ECO "B15"]
[WhiteElo "1613"]
[BlackElo "1573"]
[Annotator "NA RC COMBH"]
[PlyCount "89"]
[EventDate "2023.03.11"]
[EventType "swiss"]
[EventCountry "POL"]
[SourceTitle "playchess.com"]
[Source "ChessBase"]
[SourceQuality "1"]
[TimeControl "40/5400+30:1800+30"]

1. e4 {[%emt 0:00:02]} c6 {[%emt 0:00:05]} 2. d4 {[%emt 0:00:04]} d5 {[%emt 0:00:04]} 3. Nc3 {[%emt 0:00:03]} dxe4 {[%emt 0:00:06]} 4. Nxe4 {[%emt 0:00:05]} Nf6 {[%emt 0:00:24]} 5. Ng3 {[%emt 0:00:15]} g6 {[%emt 0:01:13]} 6. Nf3 {[%emt 0:00:23]} Bg7 {[%emt 0:00:24]} 7. Bd3 {[%emt 0:01:01]} O-O {[%emt 0:00:33]} 8. O-O {[%emt 0:00:07]} Nbd7 {[%emt 0:03:35]} 9. c3 {[%emt 0:00:15]} b6 {[%emt 0:07:05]} 10. Re1 {[%emt 0:01:13]} Bb7 {[%emt 0:00:30]} 11. Bg5 {[%emt 0:07:41]} c5 {[%emt 0:03:14]} 12. Ne4 {[%emt 0:10:33]} cxd4 {[%emt 0:06:04]} 13. Nxd4 {[%emt 0:00:55]} Ne5 {[%emt 0:01:30]} 14. Nxf6+ {[%emt 0:11:26]} exf6 {[%emt 0:02:56]} 15. Bh4 {[%emt 0:02:06]} Nxd3 {[%emt 0:00:38]} 16. Qxd3 {[%emt 0:00:12]} Re8 {[%emt 0:12:04]} 17. f3 {[%emt 0:13:17]} Qd5 {[%emt 0:01:54]} 18. Rxe8+ {[%emt 0:08:24]} Rxe8 {[%emt 0:00:09]} 19. Qb5 {[%emt 0:01:02]} Qxb5 {[%emt 0:06:21]} 20. Nxb5 {[%emt 0:00:33]} Re2 {[%emt 0:04:37]} 21. b3 {[%emt 0:20:27]} f5 {[%emt 0:07:47]} 22. Re1 {[%emt 0:01:18]} Rxe1+ {[%emt 0:01:02]} 23. Bxe1 {[%emt 0:00:07]} a6 {[%emt 0:01:01]} 24. Nd6 {[%emt 0:00:10]} Bd5 {[%emt 0:01:15]} 25. Nc8 {[%emt 0:00:27]} Bf8 {[%emt 0:01:20]} 26. Nxb6 {[%emt 0:02:06]} Bc5+ {[%emt 0:00:15]} 27. Bf2 {[%emt 0:00:04]} Bxb6 {[%emt 0:00:39]} 28. Bxb6 {[%emt 0:00:05]} Kf8 {[%emt 0:00:21]} 29. Kf2 {[%emt 0:00:54]} Ke7 {[%emt 0:00:13]} 30. Ke3 {[%emt 0:02:19]} Kd6 {[%emt 0:00:42]} 31. Kd4 {[%emt 0:00:37]} Be6 {[%emt 0:00:43]} 32. c4 {[%emt 0:01:10]} h5 {[%emt 0:05:56]} 33. b4 {[%emt 0:01:30]} Kc6 {[%emt 0:00:20]} 34. Bd8 {[%emt 0:00:45]} Kd7 {[%emt 0:00:54]} 35. Bg5 {[%emt 0:00:42]} Kc6 {[%emt 0:00:08]} 36. a4 {[%emt 0:00:23]} Kb6 {[%emt 0:03:53]} 37. b5 {[%emt 0:02:02]} axb5 {[%emt 0:00:58]} 38. cxb5 {[%emt 0:08:24]} Kc7 {[%emt 0:04:23]} 39. Kc5 {[%emt 0:00:25]} Bd7 {[%emt 0:00:42]} 40. a5 {[%emt 0:00:00]} Kb7 {[%emt 0:00:00]} 41. Kb4 {[%emt 0:01:34]} Be8 {[%emt 0:01:23]} 42. a6+ {[%emt 0:00:10]} Kb6 {[%emt 0:01:08]} 43. Be3+ {[%emt 0:00:06]} Kc7 {[%emt 0:00:11]} 44. b6+ {[%emt 0:00:29]} Kb8 {[%emt 0:00:18]} 45. Bf4+ {[%emt 0:00:12]} 1-0

[Event "Polish Youth G16 Championship 2023"]
[Site "Jastrzebia Gora"]
[Date "2023.03.17"]
[Round "7.10"]
[White "Kulczycka, Zofia"]
[Black "Zielinska, Aleksandra"]
[Result "0-1"]
[ECO "B12"]
[WhiteElo "1547"]
[BlackElo "1613"]
[Annotator "NA RC COMBH"]
[PlyCount "88"]
[EventDate "2023.03.11"]
[EventType "swiss"]
[EventCountry "POL"]
[SourceTitle "playchess.com"]
[Source "ChessBase"]
[SourceQuality "1"]
[TimeControl "40/5400+30:1800+30"]

1. e4 c6 2. d4 d5 3. e5 Bf5 4. Nf3 e6 5. Be2 Nd7 6. O-O h6 7. b3 Ne7 8. Ba3 Ng6 9. Bxf8 Ndxf8 10. Qd2 Nd7 11. c4 O-O 12. Nc3 dxc4 13. bxc4 c5 14. d5 Ndxe5 15. Nxe5 Nxe5 16. Qe3 Qf6 17. f4 Nd7 18. Ne4 Bxe4 19. Qxe4 exd5 20. Qxd5 Qe7 21. Bf3 Nb6 22. Qxb7 Qxb7 23. Bxb7 Rad8 24. Rfe1 Rd4 25. Re7 a5 26. g3 Rxc4 27. Rd1 Rd4 28. Rxd4 cxd4 29. Re5 Nc4 30. Rd5 Rb8 31. Ba6 Rb1+ 32. Kf2 Rb2+ 33. Kf3 Nd2+ 34. Kg4 Rxa2 35. Rxd4 g6 36. Rd5 h5+ 37. Kg5 Kg7 38. f5 Nf3+ 39. Kf4 Nxh2 40. fxg6 fxg6 41. Rd7+ Kh6 42. Ke3 Ng4+ 43. Kd4 Rd2+ 44. Bd3 Rxd3+ 0-1

[Event "Polish Youth G16 Championship 2023"]
[Site "Jastrzebia Gora"]
[Date "2023.03.17"]
[Round "7.11"]
[White "Bauer, Maja"]
[Black "Giemza, Julia"]
[Result "0-1"]
[ECO "B47"]
[WhiteElo "1383"]
[BlackElo "1536"]
[Annotator "NA RC COMBH"]
[PlyCount "148"]
[EventDate "2023.03.11"]
[EventType "swiss"]
[EventCountry "POL"]
[SourceTitle "playchess.com"]
[Source "ChessBase"]
[SourceQuality "1"]
[TimeControl "40/5400+30:1800+30"]

1. e4 {[%emt 0:00:03]} c5 {[%emt 0:00:05]} 2. Nf3 {[%emt 0:00:07]} e6 {[%emt 0:00:09]} 3. d4 {[%emt 0:00:15]} cxd4 {[%emt 0:00:08]} 4. Nxd4 {[%emt 0:00:08]} Nc6 {[%emt 0:00:14]} 5. Nc3 {[%emt 0:01:01]} Qc7 {[%emt 0:00:25]} 6. Be2 {[%emt 0:03:15]} a6 {[%emt 0:00:09]} 7. O-O {[%emt 0:02:20]} Nf6 {[%emt 0:01:59]} 8. Nb3 {[%emt 0:05:16]} b5 {[%emt 0:00:38]} 9. a3 {[%emt 0:01:39]} Bb7 {[%emt 0:01:19]} 10. f4 {[%emt 0:02:44]} d6 {[%emt 0:04:23]} 11. Bf3 {[%emt 0:04:43]} Be7 {[%emt 0:01:05]} 12. Qe1 {[%emt 0:02:41]} O-O {[%emt 0:02:31]} 13. Qg3 {[%emt 0:02:26]} Rfd8 {[%emt 0:02:55]} 14. Be3 {[%emt 0:13:57]} Rac8 {[%emt 0:04:22]} 15. Rad1 {[%emt 0:03:02]} Bf8 {[%emt 0:03:22]} 16. Rd2 {[%emt 0:14:28]} Ne7 {[%emt 0:14:22]} 17. Bd4 {[%emt 0:10:16]} Ne8 {[%emt 0:06:35]} 18. Qf2 {[%emt 0:05:54]} Rd7 {[%emt 0:04:22]} 19. Bb6 {[%emt 0:05:10]} Qb8 {[%emt 0:00:40]} 20. Be3 {[%emt 0:10:53]} Nf6 {[%emt 0:03:42]} 21. e5 {[%emt 0:05:34]} Nfd5 {[%emt 0:03:39]} 22. Bxd5 {[%emt 0:01:37]} Nxd5 {[%emt 0:00:32]} 23. Nxd5 {[%emt 0:01:28]} Bxd5 {[%emt 0:00:18]} 24. exd6 {[%emt 0:01:11]} Bxd6 {[%emt 0:02:21]} 25. Qg3 {[%emt 0:01:24]} Kh8 {[%emt 0:03:41]} 26. Qg4 {[%emt 0:00:38]} Qb7 {[%emt 0:04:41]} 27. Rfd1 {[%emt 0:00:46]} b4 {[%emt 0:04:00]} 28. a4 {[%emt 0:00:49]} Rdc7 {[%emt 0:06:06]} 29. Nd4 {[%emt 0:00:37]} Bc5 {[%emt 0:01:05]} 30. Qe2 {[%emt 0:00:33]} Be4 {[%emt 0:01:54]} 31. Nb3 {[%emt 0:00:25]} Be7 {[%emt 0:00:31]} 32. Na1 {[%emt 0:00:33]} h6 {[%emt 0:01:43]} 33. a5 {[%emt 0:00:13]} f5 {[%emt 0:03:31]} 34. Bb6 {[%emt 0:00:16]} Bc5+ {[%emt 0:00:32]} 35. Bxc5 {[%emt 0:00:09]} Rxc5 {[%emt 0:00:05]} 36. Rd7 {[%emt 0:00:58]} R8c7 {[%emt 0:01:06]} 37. Rxc7 {[%emt 0:00:52]} Qxc7 {[%emt 0:00:02]} 38. Qxa6 {[%emt 0:00:28]} Rxa5 {[%emt 0:00:33]} 39. Qxe6 {[%emt 0:00:19]} Qxf4 {[%emt 0:00:35]} 40. Qg6 {[%emt 0:00:00]} Rd5 {[%emt 0:00:00]} 41. Rxd5 {[%emt 0:06:01]} Bxd5 {[%emt 0:01:58]} 42. Qe8+ {[%emt 0:02:42]} Kh7 {[%emt 0:00:17]} 43. Qe1 {[%emt 0:01:21]} Qd4+ {[%emt 0:02:19]} 44. Qf2 {[%emt 0:01:09]} Qd1+ {[%emt 0:09:34]} 45. Qf1 {[%emt 0:00:12]} Qg4 {[%emt 0:00:47]} 46. h3 {[%emt 0:03:43]} Qe4 {[%emt 0:02:41]} 47. Qf2 {[%emt 0:01:52]} g5 {[%emt 0:08:36]} 48. Nb3 {[%emt 0:02:36]} Bxb3 {[%emt 0:02:52]} 49. cxb3 {[%emt 0:00:09]} f4 {[%emt 0:00:26]} 50. g4 {[%emt 0:08:56]} Kg7 {[%emt 0:03:46]} 51. Qa7+ {[%emt 0:00:43]} Kf6 {[%emt 0:00:59]} 52. Qb6+ {[%emt 0:00:26]} Ke5 {[%emt 0:05:47]} 53. Qc5+ {[%emt 0:02:18]} Ke6 {[%emt 0:06:40]} 54. Qb6+ {[%emt 0:01:36]} Kd5 {[%emt 0:01:18]} 55. Qb5+ {[%emt 0:00:28]} Kd6 {[%emt 0:02:49]} 56. Qb6+ {[%emt 0:01:11]} Qc6 {[%emt 0:01:23]} 57. Qd4+ {[%emt 0:00:15]} Qd5 {[%emt 0:00:21]} 58. Qf6+ {[%emt 0:01:27]} Kc5 {[%emt 0:01:08]} 59. Qe7+ {[%emt 0:00:33]} Kb5 {[%emt 0:00:43]} 60. Qe8+ {[%emt 0:01:03]} Qc6 {[%emt 0:00:14]} 61. Qe2+ Kb6 {[%emt 0:00:49]} 62. Qd2 {[%emt 0:02:02]} Qc5+ {[%emt 0:00:24]} 63. Kh2 {[%emt 0:00:26]} Kc6 {[%emt 0:00:30]} 64. Qg2+ {[%emt 0:00:33]} Kd6 {[%emt 0:00:20]} 65. Qd2+ {[%emt 0:00:17]} Ke5 {[%emt 0:00:42]} 66. Qe2+ {[%emt 0:00:21]} Qe3 {[%emt 0:01:01]} 67. Qb5+ {[%emt 0:00:10]} Ke4 {[%emt 0:00:33]} 68. Qc6+ {[%emt 0:01:11]} Kd3 {[%emt 0:00:51]} 69. Qc4+ {[%emt 0:00:22]} Kd2 {[%emt 0:00:04]} 70. Qxb4+ {[%emt 0:00:57]} Ke2 {[%emt 0:00:07]} 71. Qc4+ {[%emt 0:01:00]} Kf2 {[%emt 0:00:09]} 72. Qc2+ {[%emt 0:00:22]} Qe2 {[%emt 0:00:16]} 73. Qc5+ {[%emt 0:00:18]} Kf3+ {[%emt 0:00:18]} 74. Kg1 {[%emt 0:01:02]} Qg2# {[%emt 0:00:04]} 0-1